bitfinex/quotes_ETHUSD_20250602
["timestamp","ask_amount","ask_price","bid_price","bid_amount"]
[1748877999164,0.32817974,2548.4,2548.1,3.94448338]
[1748877999326,0.32817974,2548.4,2548.2,3.92425175]
[1748877999532,0.32817974,2548.4,2548.1,6.296]
[1748877999728,0.32817974,2548.4,2548.1,10.22047125]
[1748878000232,8.39385252,2548.4,2548.1,0.02]
[1748878000447,9.23323777,2548.4,2548.1,6.289]
[1748878001157,9.23323777,2548.4,2548.1,0.02]
[1748878001455,8.39385252,2548.4,2548.1,0.02]
[1748878002348,0.32817974,2548.4,2548.1,0.02]
[1748878003078,4.25229135,2548.4,2548.1,0.02]
[1748878003278,3.92433874,2548.2,2548.1,0.02]
[1748878003580,2.903,2548.0,2546.2,0.7648]
[1748878003760,8.06567278,2547.1,2546.3,0.03927125]
[1748878003964,0.32817974,2547.0,2546.3,0.03927125]
[1748878004183,0.32817974,2547.0,2546.4,6.267]
[1748878004478,0.32817974,2547.0,2546.2,0.7648]
[1748878004479,0.72741867,2547.0,2546.2,0.7648]
[1748878004787,11.99236742,2546.7,2545.9,6.266]
[1748878004967,0.32817974,2546.6,2546.4,0.36924684]
[1748878005297,4.25501801,2546.6,2545.8,4.75219379]
[1748878005468,4.25498923,2546.6,2545.8,0.8243]
[1748878005669,0.32817974,2546.6,2545.8,0.8243]
[1748878005869,0.32817974,2546.6,2545.8,4.75220482]
[1748878006046,4.25506662,2546.6,2545.8,4.75220482]
[1748878006244,0.32817974,2546.6,2545.8,4.75220482]
[1748878006448,0.32817974,2546.6,2546.1,3.94749832]
[1748878006743,0.32817974,2546.6,2546.1,0.02]
[1748878007954,0.32817974,2546.6,2546.1,3.94748756]
[1748878008294,0.32817974,2546.6,2546.1,3.94752663]
[1748878008449,8.06567278,2546.5,2546.1,0.02]
[1748878008646,0.32817974,2546.4,2546.1,3.94756257]
[1748878008878,0.32817974,2546.4,2546.1,0.02]
[1748878011961,0.32817974,2546.4,2546.2,3.9273896]
[1748878012190,0.32817974,2546.4,2546.1,0.02]
[1748878012365,0.32817974,2546.4,2546.1,3.9475479]
[1748878012682,0.32817974,2546.4,2546.1,3.9475731]
[1748878012889,0.32817974,2546.4,2546.1,3.9474884]
[1748878013302,0.32817974,2546.4,2546.1,0.02]
[1748878013500,1.16756499,2546.4,2546.1,0.02]
[1748878014099,0.32817974,2546.4,2546.1,0.02]
[1748878015717,0.32817974,2546.4,2546.2,3.92742125]
[1748878015900,0.32817974,2546.4,2546.1,3.94750655]
[1748878016082,0.32817974,2546.4,2546.2,3.92741914]
[1748878016488,0.32817974,2546.4,2546.1,0.02]
[1748878017201,0.32817974,2546.4,2546.2,6.18]
[1748878018863,0.32817974,2546.4,2546.2,6.172]
[1748878019373,0.32817974,2546.4,2546.1,6.184]
[1748878019571,0.32817974,2546.4,2546.1,0.02]
[1748878019989,0.32817974,2546.4,2546.1,3.94742393]
[1748878020297,0.32817974,2546.4,2546.2,3.9272734]
[1748878020464,0.32817974,2546.4,2546.1,3.94746951]
[1748878020667,0.32817974,2546.4,2546.1,0.02]
[1748878021575,12.32104785,2546.4,2546.1,0.02]
[1748878021778,8.39385252,2546.4,2546.1,0.02]
[1748878021998,0.32817974,2546.4,2546.1,0.02]
[1748878022405,11.99309403,2546.2,2546.1,0.02]
[1748878022569,13.95824054,2546.2,2546.1,0.02]
[1748878023506,0.1211,2545.8,2545.1,0.02]
[1748878023692,3.92874595,2545.4,2545.1,0.02]
[1748878023869,0.32817974,2545.3,2545.1,0.02]
[1748878027103,0.32817974,2545.3,2545.1,3.94903677]
[1748878027281,0.32817974,2545.3,2545.2,3.92896432]
[1748878027879,0.32817974,2545.3,2545.1,3.94905459]
[1748878028220,0.32817974,2545.3,2545.2,6.128]
[1748878028425,0.32817974,2545.3,2545.2,10.05696432]
[1748878029773,0.32817974,2545.3,2545.2,6.128]
[1748878030196,0.32817974,2545.3,2545.2,10.05696432]
[1748878030510,0.32817974,2545.3,2545.1,0.02]
[1748878030709,0.32817974,2545.3,2545.2,3.92896432]
[1748878030876,0.32817974,2545.3,2545.2,4.71676967]
[1748878031083,0.32817974,2545.3,2545.2,5.51415393]
[1748878031488,0.32817974,2545.3,2545.2,5.47486967]
[1748878031684,0.32817974,2545.3,2545.2,10.79106432]
[1748878031907,0.32817974,2545.3,2545.2,4.68706432]
[1748878032906,0.32817974,2545.3,2545.2,10.77806432]
[1748878033113,0.32817974,2545.3,2545.2,4.68706432]
[1748878033828,0.32817974,2545.3,2545.2,10.76606432]
[1748878034028,0.32817974,2545.3,2545.2,4.68706432]
[1748878034634,0.32817974,2545.3,2545.2,10.75906432]
[1748878034951,0.32817974,2545.3,2545.2,10.75606432]
[1748878035301,0.32817974,2545.3,2545.2,4.68706432]
[1748878035835,0.32817974,2545.3,2545.2,0.7581]
[1748878036125,0.32817974,2545.3,2545.1,3.94903112]
[1748878036324,0.32817974,2545.3,2545.1,11.94899587]
[1748878036527,8.45547292,2545.8,2545.2,6.049]
[1748878036730,8.06567278,2545.4,2545.1,0.02]
[1748878038725,0.38980014,2545.8,2545.1,6.055]
[1748878039039,0.1211,2546.1,2545.1,6.055]
[1748878039040,0.32817974,2545.7,2545.6,3.92834695]
[1748878039195,0.32817974,2545.7,2545.5,9.96145464]
[1748878039396,0.32817974,2545.7,2545.5,9.96140886]
[1748878039619,0.32817974,2545.7,2545.5,6.033]
[1748878040229,0.32817974,2545.7,2545.6,3.92834695]
[1748878040430,0.32817974,2545.7,2545.3,3.92875497]
[1748878040591,0.32817974,2545.7,2545.6,6.016]
[1748878041201,0.32817974,2545.7,2545.4,3.92864747]
[1748878041441,0.32817974,2545.7,2545.5,6.0]
[1748878041930,0.32817974,2545.7,2545.6,3.92834695]
[1748878042232,0.32817974,2545.7,2545.5,9.92843301]
[1748878042533,0.32817974,2545.7,2545.5,6.0]
[1748878042733,0.32817974,2545.7,2545.5,9.92842775]
[1748878043136,0.32817974,2545.7,2545.5,6.0]
[1748878044738,0.32817974,2545.7,2545.5,9.92848846]
[1748878044923,0.32817974,2545.7,2545.6,3.92834695]
[1748878045316,0.32817974,2545.7,2545.5,9.92842009]
[1748878045553,0.32817974,2545.7,2545.5,9.92843168]
[1748878045919,0.32817974,2545.7,2545.6,3.92834695]
[1748878046247,0.32817974,2545.7,2545.5,9.92842413]
[1748878047144,0.32817974,2545.7,2545.5,6.0]
[1748878048243,0.32817974,2545.7,2545.3,3.92872942]
[1748878048434,0.32817974,2545.7,2545.4,5.901]
[1748878049528,0.32817974,2545.7,2545.5,5.884]
[1748878050033,0.32817974,2545.7,2545.5,9.81243651]
[1748878050228,0.32817974,2545.7,2545.5,5.884]
[1748878051431,7.87101084,2545.7,2545.5,5.884]
[1748878051662,7.87101084,2545.7,2545.5,9.81245269]
[1748878051663,0.32817974,2545.7,2545.5,9.81245269]
[1748878051969,0.32817974,2545.7,2545.5,5.884]
[1748878052340,0.32817974,2545.7,2545.1,0.02]
[1748878052542,7.5428311,2545.4,2545.1,0.02]
[1748878052741,7.5428311,2545.4,2545.1,11.94902844]
[1748878052947,7.5428311,2545.4,2545.1,8.02]
[1748878053147,7.5428311,2545.4,2545.2,5.841]
[1748878054231,7.5428311,2545.4,2545.2,5.829]
[1748878054568,7.87101084,2545.4,2545.1,0.02]
[1748878054770,7.87101084,2545.4,2545.1,3.94910444]
[1748878055077,7.87101084,2545.4,2545.1,0.02]
[1748878055801,8.65811192,2545.4,2545.1,0.02]
[1748878055964,12.58686792,2545.4,2545.1,0.02]
[1748878056163,12.58680298,2545.4,2545.1,0.02]
[1748878056366,3.9289257,2545.3,2545.1,0.02]
[1748878056568,12.58684754,2545.4,2545.1,0.02]
[1748878056770,1.58686449,2545.3,2545.1,0.02]
[1748878057249,0.32817974,2545.3,2545.2,5.789]
[1748878057446,0.32817974,2545.3,2545.2,17.71796432]
[1748878057946,0.32817974,2545.3,2545.2,11.92896432]
[1748878058145,0.32817974,2545.3,2545.2,17.71096432]
[1748878058995,7.5428311,2545.7,2545.4,3.92855353]
[1748878059294,0.40121747,2545.8,2545.7,3.92819263]
[1748878059449,0.40121747,2545.8,2545.4,3.92855602]
[1748878059643,7.5428311,2545.7,2545.5,5.763]
[1748878059887,7.5428311,2545.7,2545.3,8.0]
[1748878060056,7.5428311,2545.4,2545.1,4.72692891]
[1748878060259,7.5428311,2545.4,2545.1,0.02]
[1748878060490,7.5428311,2545.4,2545.2,5.754]
[1748878060660,7.5428311,2545.4,2545.2,9.68293809]
[1748878060861,7.5428311,2545.4,2545.3,3.92880996]
[1748878061269,8.08277691,2545.7,2545.3,3.92880996]
[1748878061473,8.08277691,2545.7,2545.2,9.68288115]
[1748878061673,8.8910546,2545.7,2545.2,9.68288115]
[1748878061902,9.21923434,2545.7,2545.2,9.68288115]
[1748878063593,9.21923434,2545.7,2545.3,3.92880712]
[1748878063752,9.21923434,2545.7,2545.2,9.68288166]
[1748878065392,0.1211,2545.6,2545.2,5.754]
[1748878065995,8.08277691,2545.3,2545.1,0.02]
[1748878066364,8.41095665,2545.3,2545.1,5.7]
[1748878067122,8.41095665,2545.3,2545.1,0.02]
[1748878068495,0.32817974,2545.2,2545.1,0.02]
[1748878071068,8.41095665,2545.2,2545.1,0.02]
[1748878071269,0.32817974,2545.2,2545.1,3.94911869]
[1748878071469,0.32817974,2545.2,2545.1,5.642]
[1748878071771,0.32817974,2545.2,2545.1,9.57111869]
[1748878073511,0.32817974,2545.2,2545.1,0.02]
[1748878079940,4.68285377,2545.2,2545.1,0.02]
[1748878080137,4.80395377,2545.2,2545.1,0.02]
[1748878080708,4.05026938,2545.1,2544.1,0.02]
[1748878081011,8.08277691,2544.3,2544.1,0.02]
[1748878082404,0.38956854,2544.3,2544.1,0.02]
[1748878082701,8.52687463,2544.2,2544.1,0.02]
[1748878082902,0.32817974,2544.3,2544.1,0.02]
[1748878083099,0.32817974,2544.3,2544.1,3.95056346]
[1748878083433,0.32817974,2544.3,2544.1,0.02]
[1748878083633,0.32817974,2544.3,2544.1,9.44865327]
[1748878083833,0.32817974,2544.3,2544.1,5.518]
[1748878084005,7.87820842,2544.3,2544.1,5.512]
[1748878084200,8.27811095,2544.3,2544.1,5.512]
[1748878084935,8.27811095,2544.3,2544.1,0.02]
[1748878085233,9.10592205,2544.3,2544.1,0.02]
[1748878086037,9.10592205,2544.3,2544.2,3.9305086]
[1748878086038,0.32817974,2544.3,2544.2,3.9305086]
[1748878087004,0.32817974,2544.3,2544.2,11.96981342]
[1748878087203,0.32817974,2544.3,2544.2,12.7253086]
[1748878087741,7.55002868,2545.4,2544.9,3.92933121]
[1748878087936,0.32817974,2545.3,2545.0,5.458]
[1748878088342,0.32817974,2545.3,2545.2,3.92896432]
[1748878089742,7.55002868,2546.1,2545.6,3.92834442]
[1748878090063,0.32817974,2546.0,2545.7,5.435]
[1748878090351,7.55002868,2545.8,2545.7,5.435]
[1748878090645,7.94582092,2545.8,2545.7,5.435]
[1748878091404,7.94582092,2545.8,2545.4,3.92858154]
[1748878091608,7.94582092,2545.8,2545.5,5.415]
[1748878092022,7.94582092,2545.8,2545.4,3.92858154]
[1748878092208,7.94582092,2545.8,2545.5,5.408]
[1748878092414,8.77322099,2545.8,2545.1,3.92909306]
[1748878092624,8.77322099,2545.8,2545.1,3.92911869]
[1748878092810,7.55002868,2545.2,2544.9,0.7948]
[1748878093024,7.55002868,2545.2,2545.0,9.33127308]
[1748878093239,7.55002868,2545.6,2545.1,5.4]
[1748878093437,0.75500287,2545.5,2545.2,5.401]
[1748878093643,1.08318261,2545.5,2545.2,5.401]
[1748878093950,1.08318261,2545.5,2545.3,5.397]
[1748878094247,1.08318261,2545.5,2544.9,0.7948]
[1748878094453,7.55002868,2545.3,2545.0,5.39]
[1748878094850,0.32817974,2545.5,2545.1,3.92910882]
[1748878095023,0.32817974,2545.5,2545.4,3.92865561]
[1748878095228,0.32817974,2545.5,2545.4,9.31065561]
[1748878095452,0.32817974,2545.5,2545.4,5.382]
[1748878095816,0.39579224,2545.8,2545.4,9.31065561]
[1748878096019,7.55002868,2546.0,2545.5,3.9284251]
[1748878096274,8.70989097,2546.0,2545.5,3.92837564]
[1748878096640,1.15986229,2546.0,2545.7,3.92812154]
[1748878096816,7.55002868,2546.0,2545.8,5.367]
[1748878097520,7.55002868,2546.0,2545.3,3.92873263]
[1748878097521,11.47784509,2546.0,2545.3,3.92873263]
[1748878097723,7.55002868,2545.6,2545.4,9.28465035]
[1748878098040,7.55002868,2545.6,2545.5,5.356]
[1748878098560,7.55002868,2545.6,2545.2,3.92889036]
[1748878099184,7.55002868,2545.6,2545.3,9.27480427]
[1748878099458,0.39812093,2545.8,2545.4,5.343]
[1748878099756,0.32817974,2545.9,2545.7,3.92819263]
[1748878099930,0.32817974,2545.9,2545.8,3.92803833]
[1748878100130,0.32817974,2545.9,2545.7,5.339]
[1748878100465,0.32817974,2545.9,2545.8,3.92803833]
[1748878102161,0.32817974,2545.9,2545.7,5.339]
[1748878102524,0.32817974,2545.9,2545.8,5.311]
[1748878102746,0.32817974,2545.9,2545.8,9.23903833]
[1748878103163,0.32817974,2545.9,2545.8,5.311]
[1748878103458,0.32817974,2545.9,2545.8,3.92803833]
[1748878103636,0.32817974,2545.9,2545.8,9.23003833]
[1748878105660,0.32817974,2545.9,2545.7,3.92810158]
[1748878105865,0.32817974,2545.9,2545.8,5.279]
[1748878106042,0.32817974,2545.9,2545.8,9.20703833]
[1748878106227,0.32817974,2545.9,2545.8,3.92803833]
[1748878106426,0.32817974,2545.9,2545.7,3.92816119]
[1748878106627,0.32817974,2545.9,2545.8,5.271]
[1748878106868,0.32817974,2545.9,2545.8,9.19903833]
[1748878107854,0.32817974,2545.9,2545.8,9.18703833]
[1748878108165,0.32817974,2545.9,2545.8,5.259]
[1748878108465,0.32817974,2545.9,2545.7,3.92815309]
[1748878108668,1.15451317,2545.9,2545.8,5.251]
[1748878109740,1.15451317,2545.9,2545.5,8.7888]
[1748878109963,7.55002868,2545.6,2545.2,4.69308193]
[1748878110260,7.55002868,2545.6,2545.3,13.237]
[1748878110984,11.47843267,2545.6,2544.9,4.70540877]
[1748878111266,11.47843267,2545.6,2545.0,9.16016577]
[1748878111267,1.08318261,2545.5,2545.0,9.16016577]
[1748878111867,1.08318261,2545.5,2545.0,3.92916577]
[1748878112099,1.08318261,2545.5,2544.9,0.776]
[1748878112100,7.55002868,2545.3,2545.1,13.223]
[1748878112394,7.55002868,2545.3,2544.6,4.73329604]
[1748878112589,7.55002868,2545.0,2544.7,8.0]
[1748878112886,7.55002868,2545.0,2544.6,4.7333108]
[1748878113195,7.55002868,2545.0,2543.7,3.93122737]
[1748878113332,0.1211,2545.2,2544.3,4.75704665]
[1748878113333,7.55002868,2544.7,2544.3,4.75704665]
[1748878113551,7.55002868,2544.4,2543.9,0.8268]
[1748878113784,7.55002868,2544.4,2543.8,3.93103542]
[1748878114071,7.55002868,2544.4,2544.1,5.227]
[1748878114378,3.93048317,2544.3,2544.1,0.02]
[1748878114679,0.1211,2544.2,2544.1,0.02]
[1748878114846,12.15163728,2544.2,2544.1,0.02]
[1748878115047,13.94363035,2544.2,2544.1,0.02]
[1748878117047,14.27181009,2544.2,2544.1,0.02]
[1748878117751,3.93101593,2543.9,2543.5,5.182]
[1748878117961,7.55002868,2543.7,2543.5,5.182]
[1748878118470,7.55002868,2543.7,2543.1,0.86306235]
[1748878118471,3.93143705,2543.6,2543.1,0.86306235]
[1748878118693,7.55002868,2543.4,2543.1,5.26796235]
[1748878118831,7.55002868,2543.4,2543.1,0.09896235]
[1748878119036,7.55002868,2543.4,2543.2,5.166]
[1748878119637,7.55002868,2543.3,2543.1,5.25896235]
[1748878119835,7.55002868,2543.3,2543.1,9.11213293]
[1748878120085,8.69817525,2543.6,2543.1,5.18]
[1748878120406,7.55002868,2543.3,2543.1,0.02]
[1748878121077,3.9320541,2543.2,2543.1,0.02]
[1748878121401,7.55002868,2543.3,2543.1,0.02]
[1748878123007,0.32817974,2543.2,2543.1,0.02]
[1748878124265,0.32817974,2543.2,2543.1,5.144]
[1748878124584,1.50918477,2543.2,2543.1,0.02]
[1748878125606,5.44123887,2543.2,2543.1,0.02]
[1748878125803,0.55,2543.1,2541.8,0.8239]
[1748878125975,7.55002868,2542.6,2542.2,5.112]
[1748878126300,8.30503155,2542.6,2542.2,5.112]
[1748878126990,7.55002868,2542.7,2542.3,3.93334792]
[1748878127198,7.55002868,2543.0,2542.4,3.93313689]
[1748878127394,7.55002868,2543.0,2542.5,9.03410751]
[1748878127599,7.55002868,2543.0,2542.5,5.101]
[1748878128104,0.32817974,2542.9,2542.8,3.93267264]
[1748878128283,0.32817974,2542.9,2542.8,18.6044381]
[1748878129217,0.32817974,2542.9,2542.8,17.81787264]
[1748878130631,0.32817974,2542.9,2542.8,8.7902]
[1748878130831,0.32817974,2542.9,2542.8,17.79787264]
[1748878131204,0.32817974,2542.9,2542.8,8.0]
[1748878131505,0.1211,2543.2,2542.5,5.8902]
[1748878131836,7.67112868,2543.2,2542.7,3.93280298]
[1748878132036,0.76711287,2543.1,2542.7,3.93269703]
[1748878132327,0.1211,2543.2,2542.7,3.93271118]
[1748878132527,0.1211,2543.2,2542.8,3.93255964]
[1748878132735,0.39417389,2543.4,2542.9,5.068]
[1748878132938,0.1211,2543.9,2543.0,8.0]
[1748878133097,0.1211,2543.9,2543.4,3.93164456]
[1748878133298,0.1211,2543.9,2543.4,5.062]
[1748878133497,1.08962371,2543.9,2543.4,5.062]
[1748878133713,0.1211,2543.9,2543.4,8.99362936]
[1748878133908,0.1211,2543.9,2543.4,8.99365506]
[1748878134524,1.79849323,2544.1,2543.4,5.062]
[1748878134727,0.3900606,2544.1,2543.5,3.93159032]
[1748878134895,0.30515279,2544.2,2543.6,3.93131546]
[1748878135101,0.46255836,2544.1,2543.5,3.93145826]
[1748878135314,4.23569621,2544.2,2543.4,8.99368807]
[1748878135496,0.30515279,2544.2,2543.6,3.93143129]
[1748878135698,0.30515279,2544.2,2543.4,8.99368807]
[1748878135920,3.93073404,2544.1,2543.4,8.99368807]
[1748878136235,3.93073404,2544.1,2543.1,8.7861]
[1748878136236,3.93087906,2544.0,2543.1,8.7861]
[1748878136455,3.93123471,2543.8,2543.1,9.75522199]
[1748878136940,4.77215676,2543.9,2543.2,3.93194574]
[1748878137553,0.84115422,2543.9,2543.2,3.9320541]
[1748878137759,3.93082402,2544.0,2543.3,3.93180967]
[1748878138054,4.86418023,2544.1,2543.4,3.93170676]
[1748878138625,4.86416949,2544.1,2543.4,3.93162476]
[1748878139359,4.86423676,2544.1,2543.4,3.9317194]
[1748878139661,4.86418951,2544.1,2543.4,3.93166229]
[1748878139819,0.90998606,2544.0,2543.4,3.93166229]
[1748878140020,0.90998606,2544.0,2543.1,5.8231]
[1748878140221,0.90998606,2544.0,2543.6,3.93140057]
[1748878140565,0.9334967,2544.1,2543.5,3.93151305]
[1748878140739,0.3834967,2544.1,2543.8,3.9311056]
[1748878140935,0.30515279,2544.2,2543.8,3.9311056]
[1748878141151,0.30515279,2544.2,2543.9,3.93094835]
[1748878141469,0.1211,2544.2,2543.5,3.93150582]
[1748878141768,0.1211,2544.2,2543.4,3.93165656]
[1748878141769,3.93069958,2544.1,2543.4,3.93165656]
[1748878141937,0.42290175,2544.0,2543.4,3.9317449]
[1748878142141,0.42290175,2544.0,2543.7,3.93116572]
[1748878142349,0.29831791,2544.2,2543.6,4.991]
[1748878142552,0.1211,2544.2,2543.7,3.9312812]
[1748878142752,0.30585717,2544.2,2542.9,8.833]
[1748878142975,0.1211,2544.2,2543.7,3.93120589]
[1748878143280,0.1211,2544.2,2543.6,3.93136183]
[1748878143472,0.52625306,2544.2,2543.6,3.93136183]
[1748878143983,0.52625306,2544.2,2543.7,3.93126767]
[1748878144276,0.710956,2544.2,2543.6,3.93135536]
[1748878144682,0.52625306,2544.2,2543.9,3.9308831]
[1748878144845,0.1211,2544.2,2543.8,3.93106038]
[1748878145042,0.1211,2544.2,2542.7,0.8011]
[1748878145347,3.9306631,2544.1,2542.9,11.93251799]
[1748878145544,4.05167445,2544.2,2543.3,3.93183695]
[1748878145758,4.05167445,2544.2,2542.8,4.968]
[1748878145759,3.93102865,2543.9,2543.2,3.9319973]
[1748878145957,3.93090986,2544.0,2543.3,8.89588211]
[1748878146159,3.93092362,2544.0,2543.0,3.93224804]
[1748878146372,3.93106555,2543.9,2543.2,3.93190591]
[1748878146848,4.48088426,2544.0,2543.2,3.93201371]
[1748878147045,4.41965258,2543.9,2543.3,4.955]
[1748878147245,0.1211,2543.7,2542.7,0.8011]
[1748878147442,0.1211,2543.7,2543.0,3.93229282]
[1748878147638,0.1211,2543.7,2543.1,3.9321073]
[1748878147884,0.1211,2543.7,2542.9,8.0]
[1748878148086,0.1211,2544.0,2543.7,3.93120582]
[1748878148287,0.1211,2544.6,2543.6,0.8097]
[1748878148517,3.93005673,2544.5,2543.8,3.93104342]
[1748878148651,3.93028909,2544.4,2543.7,8.88121279]
[1748878148979,0.84104857,2544.3,2543.7,8.88121279]
[1748878149288,0.84104857,2544.3,2543.8,3.93110443]
[1748878149486,0.84104857,2544.3,2543.7,8.88119159]
[1748878149792,0.1211,2544.2,2542.9,0.8162]
[1748878149944,0.1211,2544.2,2543.2,3.93205356]
[1748878150140,0.1211,2544.2,2543.6,3.93134535]
[1748878150341,4.05161449,2544.2,2543.5,3.93150223]
[1748878150584,0.1211,2544.2,2543.1,8.0]
[1748878150783,0.1211,2544.2,2542.9,0.8162]
[1748878150784,0.1211,2544.2,2543.8,3.93104624]
[1748878150984,0.1211,2544.2,2543.9,3.93087752]
[1748878151294,0.1211,2543.5,2542.5,0.8022]
[1748878151589,0.1211,2543.5,2542.6,8.88096275]
[1748878151881,4.05270391,2543.5,2542.6,6.71631628]
[1748878152084,4.43795576,2543.5,2542.8,3.93259561]
[1748878152318,4.43795576,2543.5,2542.8,8.87659561]
[1748878153111,3.93180846,2543.4,2542.6,3.9329275]
[1748878153309,3.93180846,2543.4,2542.7,3.93274681]
[1748878153612,4.76878427,2543.4,2542.7,3.93274681]
[1748878153772,0.83697581,2543.4,2542.8,3.93267255]
[1748878153972,4.76872824,2543.4,2542.7,4.932]
[1748878154185,0.83697581,2543.4,2542.7,4.932]
[1748878154387,0.83697581,2543.4,2542.8,3.93267259]
[1748878154586,0.52749967,2543.3,2542.7,8.86477057]
[1748878154990,0.52749967,2543.3,2542.7,3.93277057]
[1748878155219,0.55,2543.2,2542.2,0.8057]
[1748878155393,0.6711,2543.2,2542.3,3.93333096]
[1748878155593,3.93229781,2543.1,2542.4,3.93327745]
[1748878155811,0.85355421,2543.0,2542.4,3.93327745]
[1748878157611,0.85355421,2543.0,2542.4,8.84027745]
[1748878157772,0.85355421,2543.0,2542.4,4.907]
[1748878157980,11.61287347,2543.2,2542.5,3.93312994]
[1748878158223,0.6711,2543.1,2541.3,0.779]
[1748878158440,0.1211,2542.3,2541.3,0.779]
[1748878158589,7.55964688,2542.8,2541.9,3.93399774]
[1748878158788,4.7879497,2542.7,2542.0,3.93389955]
[1748878159237,0.855,2542.7,2541.9,3.93393574]
[1748878159401,4.78792931,2542.7,2542.0,3.93382834]
[1748878159726,0.855,2542.7,2542.2,3.93350076]
[1748878159886,0.6711,2543.0,2542.3,3.93329541]
[1748878160078,0.1211,2543.0,2542.4,3.93319951]
[1748878160282,4.05348861,2543.0,2542.3,3.93336427]
[1748878160478,4.05348861,2543.0,2542.4,4.894]
[1748878160678,7.96499574,2542.9,2542.1,0.02]
[1748878160879,4.33788179,2542.9,2542.2,8.82553603]
[1748878161074,7.96499574,2542.9,2542.1,3.95375248]
[1748878161382,0.55,2542.8,2542.1,0.02]
[1748878161579,3.93283544,2542.7,2542.1,0.02]
[1748878161807,0.44828354,2542.6,2542.1,0.02]
[1748878162005,0.44828354,2542.6,2542.1,3.9537432]
[1748878162818,0.44828354,2542.6,2542.3,3.93334201]
[1748878162994,0.44828354,2542.6,2542.1,0.02]
[1748878162995,11.89751468,2542.9,2542.2,3.93348788]
[1748878163323,3.93276666,2542.8,2542.1,3.95371812]
[1748878163518,3.93270842,2542.8,2542.2,3.93357847]
[1748878163826,1.59511866,2542.8,2542.2,3.93357847]
[1748878164011,1.59511866,2542.8,2542.1,3.9536907]
[1748878164328,0.40534886,2542.9,2542.1,0.05933635]
[1748878164499,0.40534886,2542.9,2542.5,3.93311504]
[1748878164680,0.40534886,2542.9,2542.5,3.93302025]
[1748878165009,0.1211,2543.0,2542.5,3.93302025]
[1748878165010,0.1211,2543.0,2542.5,3.93306604]
[1748878165327,0.1211,2543.0,2542.5,3.93305879]
[1748878165497,0.1211,2543.0,2542.5,8.79505879]
[1748878165691,0.1211,2543.0,2542.4,3.93320571]
[1748878165922,11.49223707,2542.9,2542.1,0.02]
[1748878166119,13.04679785,2542.9,2542.3,11.93342124]
[1748878166300,9.11420766,2542.9,2542.3,8.0]
[1748878166499,13.04672915,2542.9,2542.2,11.93359013]
[1748878166706,9.11420766,2542.9,2542.3,8.78830425]
[1748878167088,9.11420766,2542.9,2542.3,3.93330425]
[1748878167288,1.31677335,2542.8,2542.3,3.93335925]
[1748878167520,1.31677335,2542.8,2542.4,3.93328228]
[1748878167715,0.1211,2543.9,2543.4,3.9317449]
[1748878167920,0.1211,2543.9,2543.6,3.93137899]
[1748878168226,0.1211,2543.9,2543.3,3.93174569]
[1748878168444,7.68074688,2543.9,2542.8,8.8267]
[1748878168657,3.93136957,2543.7,2543.0,11.93234463]
[1748878168819,0.84124962,2543.6,2543.1,3.93220182]
[1748878169017,7.68074688,2543.9,2543.3,3.93174578]
[1748878169238,0.1211,2543.9,2543.1,4.851]
[1748878169444,4.05210407,2543.9,2543.2,3.93197903]
[1748878169644,0.1211,2543.1,2542.0,3.93388713]
[1748878169857,0.1211,2543.1,2542.1,8.80374886]
[1748878170058,0.1211,2543.1,2542.3,0.8267]
[1748878170270,0.1211,2543.1,2542.7,3.93275596]
[1748878170419,0.1211,2543.1,2542.7,4.865]
[1748878171558,0.1211,2543.1,2542.5,3.9330479]
[1748878171725,0.1211,2543.1,2542.7,4.856]
[1748878171925,0.91960887,2543.1,2542.5,3.9330479]
[1748878172126,0.91960887,2543.1,2542.3,0.8267]
[1748878172326,4.85193058,2543.1,2542.4,8.78526309]
[1748878172528,3.93237672,2543.0,2542.4,3.93326309]
[1748878172732,3.93237672,2543.0,2542.3,8.8267]
[1748878172927,3.93237672,2543.0,2542.4,4.847]
[1748878172928,1.63436995,2543.0,2542.4,4.847]
[1748878173128,1.63436995,2543.0,2542.4,8.78023462]
[1748878173352,5.56687203,2543.0,2542.4,4.847]
[1748878173556,11.49219209,2542.9,2542.3,8.0]
[1748878173725,5.56675866,2543.0,2542.1,0.02]
[1748878173726,7.55964688,2542.6,2542.1,0.02]
[1748878173927,0.1211,2542.7,2542.1,4.864]
[1748878174266,0.1211,2542.7,2542.4,3.93318699]
[1748878174439,0.1211,2542.7,2542.3,3.93341986]
[1748878174777,1.75546995,2543.0,2542.4,4.842]
[1748878174926,0.1211,2543.0,2542.4,4.842]
[1748878175130,0.1211,2543.0,2542.5,3.93312274]
[1748878175332,0.1211,2543.0,2542.4,8.77520756]
[1748878175579,4.05354476,2543.0,2542.5,4.838]
[1748878175726,4.05354476,2543.0,2542.4,8.77127709]
[1748878176049,0.91966006,2543.0,2542.5,4.836]
[1748878176363,0.91966006,2543.0,2542.5,4.833]
[1748878176566,0.91966006,2543.0,2542.5,4.831]
[1748878176726,0.91966006,2543.0,2542.5,4.829]
[1748878176926,0.91966006,2543.0,2542.5,4.828]
[1748878177231,0.1211,2543.0,2542.5,4.828]
[1748878177626,0.1211,2543.0,2542.2,3.93360081]
[1748878177830,11.61319316,2543.0,2542.3,4.824]
[1748878178136,3.93266458,2542.9,2542.2,8.0]
[1748878178446,3.93274513,2542.8,2542.1,0.02]
[1748878178662,3.93326803,2542.5,2542.1,0.02]
[1748878178948,3.93317289,2542.5,2542.1,0.02]
[1748878179155,3.93317289,2542.5,2542.1,4.836]
[1748878179347,7.68074688,2542.7,2542.1,4.836]
[1748878179550,3.93356267,2542.3,2542.2,4.812]
[1748878179864,3.93356267,2542.3,2542.1,4.832]
[1748878180062,3.93333081,2542.4,2542.1,0.02]
[1748878180227,4.32687197,2542.3,2542.1,0.02]
[1748878180637,4.05470081,2542.2,2542.1,0.02]
[1748878180828,0.55,2542.0,2541.1,0.02]
[1748878181056,3.93454283,2541.6,2541.1,0.02]
[1748878181264,3.93476427,2541.5,2541.1,4.827]
[1748878181567,0.51457643,2541.5,2541.1,0.02]
[1748878181870,11.61556542,2541.5,2541.1,0.02]
[1748878182078,3.93500417,2541.3,2541.1,0.02]
[1748878182258,3.93514874,2541.2,2541.1,0.02]
[1748878183058,0.39134641,2541.3,2541.1,0.02]